bitfinex-derivatives/quotes_BTCF0:USTF0_20250812
["timestamp","ask_amount","ask_price","bid_price","bid_amount"]
[1755001612190,0.005,118610.0,118600.0,3.01002784]
[1755001612384,8e-05,118620.0,118610.0,0.0843165]
[1755001612588,8e-05,118620.0,118610.0,0.61120192]
[1755001614396,0.00108,118620.0,118610.0,0.61520192]
[1755001615189,0.1088394,118620.0,118610.0,1.44540192]
[1755001615386,0.02453,118620.0,118610.0,1.44540192]
[1755001615587,0.1893194,118620.0,118610.0,1.0380765]
[1755001615787,0.2035494,118620.0,118610.0,1.0380765]
[1755001615987,0.2035494,118620.0,118610.0,1.44524192]
[1755001616190,0.2035494,118620.0,118610.0,1.44724192]
[1755001616598,0.2035494,118620.0,118610.0,1.44700192]
[1755001619202,0.2035494,118620.0,118610.0,1.0398365]
[1755001619404,0.2035494,118620.0,118610.0,1.44700192]
[1755001620194,0.2035494,118620.0,118610.0,0.61720192]
[1755001620397,0.61071482,118620.0,118610.0,0.91443]
[1755001620601,0.6375747,118620.0,118610.0,0.9987466]
[1755001620894,0.23040928,118620.0,118610.0,0.9289278]
[1755001621096,0.23040928,118620.0,118610.0,0.86391]
[1755001621302,0.23040928,118620.0,118610.0,0.9821466]
[1755001621602,0.23040928,118620.0,118610.0,1.0132066]
[1755001622499,0.2035494,118620.0,118610.0,1.42037202]
[1755001623100,0.2035494,118620.0,118610.0,1.44436202]
[1755001624397,0.23044028,118620.0,118610.0,1.0371966]
[1755001624604,0.23044028,118620.0,118610.0,1.44436202]
[1755001624799,0.23044028,118620.0,118610.0,1.0371966]
[1755001625403,0.23044028,118620.0,118610.0,1.44436202]
[1755001625607,0.23044028,118620.0,118610.0,1.0371966]
[1755001625801,0.23044028,118620.0,118610.0,0.2093566]
[1755001626004,0.23044028,118620.0,118610.0,0.61652202]
[1755001626197,0.23044028,118620.0,118610.0,1.44316202]
[1755001626498,0.23044028,118620.0,118610.0,1.0359966]
[1755001626903,1.73044028,118620.0,118610.0,1.44316202]
[1755001627099,1.68386028,118620.0,118610.0,1.44316202]
[1755001627597,0.02797088,118620.0,118610.0,1.44316202]
[1755001627805,0.00108,118620.0,118610.0,1.44316202]
[1755001628393,0.00108,118620.0,118610.0,1.44596202]
[1755001629503,0.10284986,118660.0,118650.0,0.0842881]
[1755001629704,0.41861677,118660.0,118650.0,0.94778]
[1755001630000,0.0842881,118650.0,118640.0,0.01392]
[1755001630203,0.23147991,118650.0,118640.0,0.8294]
[1755001630398,0.23147991,118650.0,118640.0,0.9851952]
[1755001630598,0.14719181,118650.0,118640.0,1.44004062]
[1755001630799,0.23147991,118650.0,118640.0,0.61000062]
[1755001630999,0.23147991,118650.0,118640.0,1.44048062]
[1755001631199,0.14719181,118650.0,118640.0,1.44048062]
[1755001631496,0.23147991,118650.0,118640.0,0.61000062]
[1755001631796,0.23147991,118650.0,118640.0,1.0335952]
[1755001632002,0.23147991,118650.0,118640.0,1.44076062]
[1755001632204,0.23147991,118650.0,118640.0,1.0335952]
[1755001632902,0.14719181,118650.0,118640.0,1.0335952]
[1755001633106,0.14719181,118650.0,118640.0,1.50859987]
[1755001633307,0.09938181,118650.0,118640.0,1.50859987]
[1755001633501,0.02156466,118660.0,118650.0,0.0842881]
[1755001633708,0.04632466,118660.0,118650.0,0.2028281]
[1755001633906,0.07203679,118660.0,118650.0,0.67783277]
[1755001634101,0.04427679,118660.0,118650.0,0.67783277]
[1755001634610,0.24913789,118660.0,118650.0,0.2028281]
[1755001635312,0.72614256,118660.0,118650.0,0.9158081]
[1755001635812,0.25113789,118660.0,118650.0,0.9158081]
[1755001636005,2.22614256,118660.0,118650.0,0.9158081]
[1755001636413,1.75113789,118660.0,118650.0,0.9158081]
[1755001636609,1.75113789,118660.0,118650.0,1.0103581]
[1755001637710,2.22614256,118660.0,118650.0,0.9158081]
[1755001637914,2.22614256,118660.0,118640.0,0.2528812]
[1755001637915,0.0842884,118650.0,118640.0,0.2528812]
[1755001638215,0.2048684,118650.0,118640.0,1.0856412]
[1755001638417,0.2048684,118650.0,118640.0,1.1180912]
[1755001638612,0.2048684,118650.0,118640.0,1.1320112]
[1755001638807,0.0842955,118640.0,118630.0,0.1686042]
[1755001639013,0.67988017,118640.0,118630.0,1.0273342]
[1755001639224,0.69988017,118640.0,118630.0,0.1686042]
[1755001639421,0.69988017,118640.0,118610.0,0.1083068]
[1755001639422,0.0843097,118620.0,118610.0,0.2993172]
[1755001639623,0.67989437,118620.0,118610.0,1.232804]
[1755001640227,0.67989437,118620.0,118610.0,0.2684372]
[1755001640433,0.69989437,118620.0,118610.0,0.2529472]
[1755001640834,0.69989437,118620.0,118610.0,1.0892272]
[1755001641034,0.69989437,118620.0,118610.0,1.0049104]
[1755001641634,0.2248897,118620.0,118610.0,1.0099104]
[1755001641829,0.2248897,118620.0,118610.0,1.53128507]
[1755001642032,0.09277,118620.0,118610.0,1.55527507]
[1755001642226,0.02,118620.0,118610.0,1.55527507]
[1755001642531,0.31175,118630.0,118620.0,0.0843097]
[1755001642730,0.3991913,118630.0,118620.0,0.2028497]
[1755001642936,0.3033713,118630.0,118620.0,0.2028497]
[1755001643136,0.3511813,118630.0,118620.0,0.2028497]
[1755001643332,0.3991913,118630.0,118620.0,0.2028497]
[1755001643633,0.3991913,118630.0,118620.0,0.1788597]
[1755001644432,0.3991913,118630.0,118620.0,0.1808597]
[1755001644631,0.3991913,118630.0,118620.0,0.9469197]
[1755001644937,0.3991913,118630.0,118620.0,0.9793697]
[1755001645336,0.3991913,118630.0,118620.0,0.9773697]
[1755001645537,0.87419597,118630.0,118620.0,0.9198297]
[1755001645831,0.3991913,118630.0,118620.0,0.9193897]
[1755001646335,0.3991913,118630.0,118620.0,0.9163897]
[1755001646530,0.3991913,118630.0,118620.0,0.9183897]
[1755001647036,0.3991913,118630.0,118620.0,0.9161897]
[1755001647228,0.3991913,118630.0,118620.0,0.0843097]
[1755001647431,0.3991913,118630.0,118620.0,0.9159497]
[1755001647626,0.3991913,118630.0,118620.0,0.0843097]
[1755001647830,0.3854513,118630.0,118620.0,1.50921437]
[1755001648030,0.3854513,118630.0,118620.0,1.0342097]
[1755001648227,0.3991913,118630.0,118620.0,1.0342097]
[1755001648434,0.2786113,118630.0,118620.0,1.0102197]
[1755001648738,0.3511813,118630.0,118620.0,1.50921437]
[1755001649036,0.3991913,118630.0,118620.0,1.50921437]
[1755001649626,0.11,118630.0,118620.0,1.51221437]
[1755001649832,0.1943036,118630.0,118620.0,1.51221437]
[1755001650030,0.1943036,118630.0,118620.0,1.0372097]
[1755001650231,0.1943036,118630.0,118620.0,1.51221437]
[1755001650446,0.1943036,118630.0,118620.0,1.0392097]
[1755001650734,0.2190636,118630.0,118620.0,1.51421437]
[1755001651433,0.1090636,118630.0,118620.0,1.51421437]
[1755001651630,0.1431336,118630.0,118620.0,1.51421437]
[1755001652336,0.1431336,118630.0,118620.0,1.0392097]
[1755001652540,0.1431336,118630.0,118620.0,1.51421437]
[1755001652838,0.1431336,118630.0,118620.0,1.0392097]
[1755001653436,0.0843036,118630.0,118620.0,1.51421437]
[1755001653638,0.1423436,118630.0,118620.0,1.0407297]
[1755001654038,0.1423436,118630.0,118620.0,1.51573437]
[1755001655035,0.1423436,118630.0,118620.0,1.0407297]
[1755001655338,0.0843036,118630.0,118620.0,1.51573437]
[1755001656241,0.1091436,118630.0,118620.0,1.51573437]
[1755001656640,0.1423436,118630.0,118620.0,1.51573437]
[1755001656844,0.1423436,118630.0,118620.0,1.0407297]
[1755001657337,0.2038736,118630.0,118620.0,0.2078497]
[1755001657530,0.69795728,118630.0,118620.0,0.005]
[1755001657733,0.69795728,118630.0,118620.0,0.1378005]
[1755001657939,0.69795728,118630.0,118620.0,0.1852305]
[1755001658436,0.22295261,118630.0,118620.0,0.2095005]
[1755001659039,0.22295261,118630.0,118620.0,0.12519]
[1755001659341,0.22295261,118630.0,118620.0,0.10092]
[1755001659643,0.24295261,118630.0,118620.0,0.1852305]
[1755001659841,0.24295261,118630.0,118620.0,0.10092]
[1755001660036,0.71795728,118630.0,118620.0,0.005]
[1755001660439,0.2238736,118630.0,118620.0,0.0893105]
[1755001660741,0.2238736,118630.0,118620.0,0.2095005]
[1755001660940,0.2038736,118630.0,118620.0,0.2095005]
[1755001661135,0.20818888,118630.0,118620.0,0.005]
[1755001661341,0.78746355,118630.0,118620.0,0.004]
[1755001662532,0.78746355,118630.0,118620.0,0.003]
[1755001663134,0.78746355,118630.0,118610.0,0.3014367]
[1755001663340,0.1566205,118620.0,118610.0,0.3257067]
[1755001663649,0.2038805,118620.0,118610.0,0.3731367]
[1755001665640,0.67888517,118620.0,118610.0,0.2045076]
[1755001665837,0.2038805,118620.0,118610.0,0.2045076]
[1755001666038,1.7038805,118620.0,118610.0,0.2045076]
[1755001666238,1.7038805,118620.0,118610.0,0.2065076]
[1755001667639,0.0843176,118610.0,118590.0,0.22543031]
[1755001667846,0.2038947,118600.0,118590.0,1.17713161]
[1755001668042,0.2038947,118600.0,118590.0,0.26127161]
[1755001668243,0.0843318,118590.0,118580.0,0.96989276]
[1755001668438,0.2039018,118590.0,118580.0,1.06581276]
[1755001668640,0.2039018,118590.0,118580.0,0.98958518]
[1755001668938,0.2039018,118590.0,118580.0,1.07380408]
[1755001669248,0.1091718,118590.0,118580.0,1.54884875]
[1755001669445,0.0843318,118590.0,118580.0,1.54884875]
[1755001669939,0.0843318,118590.0,118580.0,0.69673743]
[1755001670147,0.1576418,118590.0,118580.0,1.07209276]
[1755001670340,0.1832818,118590.0,118580.0,1.07209276]
[1755001670535,0.1832818,118590.0,118580.0,1.54665743]
[1755001671045,0.1832818,118590.0,118580.0,0.70373743]
[1755001671046,0.1690118,118590.0,118580.0,0.70373743]
[1755001671342,0.1101718,118590.0,118580.0,1.54677743]
[1755001671547,0.1101718,118590.0,118580.0,0.70373743]
[1755001671849,0.1101718,118590.0,118580.0,1.54669743]
[1755001672152,0.1433718,118590.0,118580.0,1.54673743]
[1755001672945,0.1433718,118590.0,118580.0,1.55073743]
[1755001673847,0.1666918,118590.0,118580.0,1.55073743]
[1755001674445,0.1666918,118590.0,118580.0,0.70773743]
[1755001674647,0.2049018,118590.0,118580.0,0.2155289]
[1755001675450,0.2049018,118590.0,118580.0,0.011]
[1755001675744,0.67990647,118590.0,118580.0,0.85192]
[1755001676248,0.2049018,118590.0,118580.0,0.88649]
[1755001676748,0.2049018,118590.0,118580.0,1.0007089]
[1755001677144,0.2049018,118590.0,118580.0,1.0001489]
[1755001677651,0.2049018,118590.0,118580.0,1.0244189]
[1755001678547,0.2249018,118590.0,118580.0,1.0244189]
[1755001678948,0.2249018,118590.0,118580.0,0.85136]
[1755001679147,0.2249018,118590.0,118580.0,0.04557]
[1755001679350,0.2249018,118590.0,118580.0,0.1912589]
[1755001679553,0.2249018,118590.0,118580.0,0.10692]
[1755001679952,0.2249018,118590.0,118580.0,0.2155289]
[1755001680254,0.2049018,118590.0,118580.0,0.2155289]
[1755001680643,0.2049018,118590.0,118580.0,0.69053357]
[1755001680850,0.2049018,118590.0,118580.0,0.2155289]
[1755001682449,0.0853318,118590.0,118580.0,1.0531389]
[1755001682650,0.001,118590.0,118580.0,1.52814357]
[1755001682946,0.2036218,118590.0,118580.0,0.12992]
[1755001683150,0.67862647,118590.0,118580.0,0.1912589]
[1755001683445,0.2036218,118590.0,118580.0,1.0294189]
[1755001684150,0.2036218,118590.0,118580.0,1.0154989]
[1755001684350,0.2036218,118590.0,118580.0,0.2122589]
[1755001684550,0.20514208,118590.0,118580.0,0.2122589]
[1755001684859,0.08685208,118590.0,118580.0,0.0953389]
[1755001685544,0.08685208,118590.0,118580.0,0.011]
[1755001685851,0.56185675,118590.0,118580.0,0.011]
[1755001686056,0.084346,118570.0,118560.0,0.27028136]
[1755001686258,0.084346,118570.0,118560.0,1.10736136]
[1755001686648,0.08586628,118570.0,118560.0,1.10736136]
[1755001686847,0.08586628,118570.0,118560.0,1.58236603]
[1755001687557,0.08686628,118570.0,118560.0,1.59036603]
[1755001687857,0.08686628,118570.0,118560.0,1.59436603]
[1755001688057,0.08686628,118570.0,118560.0,1.11936136]
[1755001688361,0.08686628,118570.0,118560.0,1.59436603]
[1755001688559,0.08686628,118570.0,118560.0,0.28228136]
[1755001688760,0.08686628,118570.0,118560.0,1.11820136]
[1755001688951,0.08686628,118570.0,118560.0,0.28228136]
[1755001689257,0.08686628,118570.0,118560.0,1.11812136]
[1755001689648,0.08686628,118570.0,118560.0,0.28228136]
[1755001689850,0.08686628,118570.0,118560.0,1.11776136]
[1755001690860,0.08686628,118570.0,118560.0,1.11724136]
[1755001694956,0.08686628,118570.0,118560.0,0.02922626]
[1755001695162,0.10686628,118570.0,118560.0,0.02922626]
[1755001697264,0.10686628,118570.0,118560.0,0.11357926]
[1755001697466,0.10686628,118570.0,118560.0,0.02922626]
[1755001698463,0.10686628,118570.0,118560.0,0.11357926]
[1755001700866,0.08686628,118570.0,118560.0,0.11357926]
[1755001713681,0.00252028,118570.0,118560.0,0.11357926]
[1755001713869,0.08686628,118570.0,118560.0,0.11357926]
[1755001715576,0.00252028,118570.0,118560.0,0.11357926]
[1755001716777,0.08686638,118570.0,118560.0,0.11357926]
[1755001716974,0.00252028,118570.0,118560.0,0.11357926]
[1755001717878,0.08686628,118570.0,118560.0,0.11357926]
[1755001718775,0.08686628,118570.0,118560.0,0.02922626]
[1755001719881,0.08686628,118570.0,118560.0,0.11357946]
[1755001720081,0.08686628,118570.0,118560.0,0.02922626]
[1755001722186,0.08686628,118570.0,118560.0,0.11357946]
[1755001723089,0.08686628,118570.0,118560.0,0.02922626]
[1755001723482,0.08686628,118570.0,118560.0,0.11357946]
[1755001723683,0.08686628,118570.0,118560.0,0.02922626]
[1755001724192,0.19686628,118570.0,118560.0,0.02922626]
[1755001724387,0.10686628,118570.0,118560.0,0.02922626]
[1755001725889,0.10686628,118570.0,118560.0,0.11357946]
[1755001726190,0.10686628,118570.0,118560.0,0.02922626]
[1755001726593,0.10686628,118570.0,118560.0,0.11357946]
[1755001727192,0.08686628,118570.0,118560.0,0.11357946]
[1755001730088,0.08686628,118570.0,118560.0,0.02922626]
[1755001730288,0.18686628,118570.0,118560.0,0.02922626]
[1755001730490,0.08686628,118570.0,118560.0,0.02922626]
[1755001732488,0.0843674,118540.0,118530.0,0.40413716]
[1755001732694,0.08588768,118540.0,118530.0,0.31976316]
[1755001733195,0.08588768,118540.0,118530.0,0.1687449]
[1755001733393,0.08588768,118540.0,118530.0,0.17729488]
[1755001733994,0.08588768,118540.0,118530.0,0.32831314]
[1755001734393,0.08788768,118540.0,118530.0,0.34531314]
[1755001734795,0.08788768,118540.0,118530.0,0.19429488]
[1755001737902,0.08788768,118540.0,118530.0,0.02554998]
[1755001738302,0.18788768,118540.0,118530.0,0.017]
[1755001739606,0.20661393,118540.0,118530.0,0.017]
[1755001740911,0.20661393,118540.0,118530.0,0.1013745]
[1755001742200,0.20661393,118540.0,118530.0,0.017]
[1755001743000,0.20661393,118540.0,118530.0,0.1013744]
[1755001743805,0.27572139,118540.0,118530.0,0.1013744]
[1755001744607,0.25699514,118540.0,118530.0,0.1013744]
[1755001749008,0.25699514,118540.0,118530.0,0.017]
[1755001751503,0.25699514,118540.0,118530.0,0.1013744]
[1755001764624,0.25699514,118540.0,118530.0,0.017]
[1755001764921,0.25699514,118540.0,118530.0,0.1013744]
[1755001765622,0.25699514,118540.0,118530.0,0.017]
[1755001766121,0.25699514,118540.0,118530.0,0.1013743]
[1755001768223,0.18788768,118540.0,118530.0,0.1013743]
[1755001770526,0.08788768,118540.0,118530.0,0.1013743]
[1755001772723,0.08788768,118540.0,118530.0,0.017]
[1755001773028,0.19788768,118540.0,118530.0,0.017]
[1755001774230,0.17788768,118540.0,118530.0,0.1013743]
[1755001775323,0.17588768,118540.0,118530.0,0.0843743]
[1755001775526,0.18888768,118540.0,118530.0,0.0873743]
[1755001775929,0.09888768,118540.0,118530.0,0.0873743]
[1755001776529,0.01452028,118540.0,118530.0,0.0873743]
[1755001776728,0.01052028,118540.0,118530.0,0.0863743]
[1755001776927,0.01252028,118540.0,118530.0,0.0863743]
[1755001777329,0.00952028,118540.0,118530.0,0.0853743]
[1755001777831,0.09388758,118540.0,118530.0,0.0853743]
[1755001778333,0.00952028,118540.0,118530.0,0.001]
[1755001784932,0.02952028,118540.0,118530.0,0.001]
[1755001787932,0.00952028,118540.0,118530.0,0.001]
[1755001788342,0.00952028,118540.0,118530.0,0.169728]
[1755001789137,0.00952028,118540.0,118530.0,0.001]
[1755001790751,0.00852028,118540.0,118530.0,0.001]
[1755001791052,0.00752028,118540.0,118530.0,0.001]
[1755001796352,0.00652028,118540.0,118530.0,0.001]
[1755001798452,0.00552028,118540.0,118530.0,0.001]
[1755001801252,0.01881067,118580.0,118530.0,0.001]
[1755001801454,0.169,118610.0,118530.0,0.051]
[1755001801653,0.3608,118710.0,118650.0,0.0852861]
[1755001801862,1.5,118700.0,118670.0,0.001]
[1755001802052,1.5,118700.0,118630.0,0.1686029]
[1755001802350,1e-07,118680.0,118650.0,0.3371478]
[1755001802558,1e-07,118680.0,118650.0,0.1685721]
[1755001802757,1e-07,118680.0,118650.0,0.3371161]
[1755001802945,1e-07,118680.0,118650.0,0.2528284]
[1755001803150,1e-07,118680.0,118630.0,0.1686029]
[1755001803349,0.01905404,118680.0,118630.0,0.168603]
[1755001803557,0.01905404,118680.0,118630.0,0.16857154]
[1755001803754,0.01905404,118680.0,118630.0,0.33817614]
[1755001803957,1e-07,118680.0,118650.0,0.1685691]
[1755001804154,1e-07,118680.0,118650.0,0.0842816]
[1755001804557,0.01905404,118680.0,118630.0,0.001]
[1755001804755,0.144,118670.0,118630.0,0.001]
[1755001804955,0.01905404,118680.0,118630.0,0.001]
[1755001805156,0.03905404,118680.0,118630.0,0.001]
[1755001805552,0.03905404,118680.0,118600.0,0.084316]
[1755001805758,0.03905404,118680.0,118620.0,0.2529119]
[1755001805958,0.02005404,118680.0,118630.0,0.004]
[1755001806350,0.02105404,118680.0,118650.0,0.002]
[1755001806557,0.36226707,118710.0,118660.0,0.0842775]
[1755001806757,0.22382817,118710.0,118700.0,0.001]
[1755001806954,0.01274277,118710.0,118690.0,0.2527697]
[1755001807154,0.3608,118720.0,118690.0,0.3880263]
[1755001807350,0.0001,118830.0,118690.0,0.3870263]
[1755001807556,0.0842082,118880.0,118760.0,0.0842049]
[1755001807759,0.1682798,118860.0,118730.0,0.1685545]
[1755001807957,0.11,118860.0,118750.0,0.1684234]
[1755001808353,0.1941402,118860.0,118730.0,0.1685545]
[1755001808560,0.0841677,118820.0,118730.0,0.0001]
[1755001808760,0.2130906,118820.0,118730.0,0.0001]
[1755001808959,0.18499625,118750.0,118730.0,0.0001]
[1755001809154,1.5189229,118820.0,118730.0,0.0001]
[1755001809368,1.6489229,118820.0,118730.0,0.0001]
[1755001809555,0.18499625,118740.0,118730.0,0.0001]
[1755001809864,0.31499625,118740.0,118650.0,9.618e-05]
[1755001810062,0.129,118740.0,118670.0,0.017074]
[1755001810459,0.18499625,118700.0,118670.0,0.017074]
[1755001810652,1.5,118730.0,118670.0,0.017074]
[1755001810851,1.61,118730.0,118670.0,0.017074]
[1755001811266,1.5,118730.0,118670.0,0.1013408]
[1755001811565,0.01,118730.0,118670.0,0.1856112]
[1755001811762,0.18499625,118720.0,118670.0,0.1856112]
[1755001811968,0.002,118740.0,118690.0,0.0842531]
[1755001812263,0.002,118740.0,118690.0,0.18586674]
[1755001812466,0.002,118740.0,118690.0,0.27012354]
[1755001812667,0.002,118740.0,118710.0,0.1684803]
[1755001812863,0.002,118740.0,118710.0,0.2527236]
[1755001813063,0.018922,118840.0,118750.0,0.1694274]
[1755001813259,0.1101,118830.0,118750.0,0.10150336]
[1755001813461,0.18499625,118800.0,118750.0,0.02585637]
[1755001813659,0.02,118800.0,118760.0,0.1684146]
[1755001814161,0.02,118800.0,118750.0,0.00856641]
[1755001814359,0.02,118800.0,118740.0,0.1684428]
[1755001814562,0.02,118800.0,118750.0,0.002]
[1755001814763,0.058,118830.0,118750.0,0.002]
[1755001814961,0.05,118830.0,118800.0,0.0841789]
[1755001815261,0.05,118830.0,118770.0,0.0841983]
[1755001815467,0.05,118830.0,118750.0,0.002]
[1755001815663,0.18499625,118800.0,118750.0,0.002]
[1755001815863,0.04,118800.0,118750.0,0.002]
[1755001816371,0.07,118800.0,118760.0,0.0882035]
[1755001816554,0.07,118800.0,118760.0,0.1724105]
[1755001816757,0.0011,118980.0,118790.0,0.0841845]
[1755001816956,0.008,118830.0,118770.0,0.0842001]
[1755001817163,0.018,118830.0,118790.0,0.0841819]
[1755001817456,0.018,118830.0,118790.0,0.08412905]
[1755001817765,0.008,118830.0,118800.0,0.0841789]
[1755001817954,0.008,118830.0,118800.0,0.1683578]
[1755001818160,0.008,118830.0,118800.0,0.3025367]
[1755001818360,0.008,118830.0,118800.0,0.168328]
[1755001818761,0.00146522,118860.0,118800.0,0.47084475]
[1755001818957,0.00146522,118860.0,118820.0,0.084161]
[1755001819161,0.00146522,118860.0,118810.0,0.0841718]
[1755001819564,0.00146522,118860.0,118830.0,0.168311]
[1755001819767,1.5,118900.0,118830.0,0.2524685]
[1755001819957,0.0188432,118920.0,118870.0,0.0841248]
[1755001820266,1.16484,118970.0,118860.0,0.1682728]
[1755001820467,0.18499625,118920.0,118860.0,0.0841364]
[1755001820667,1.5,118960.0,118860.0,0.1682728]
[1755001820863,1.53,118960.0,118860.0,0.1682728]
[1755001821060,0.18499625,118930.0,118860.0,0.1682728]
[1755001821260,0.20499625,118930.0,118860.0,0.1682728]
[1755001821457,0.02,118930.0,118870.0,0.084129]
[1755001821662,0.02,118930.0,118870.0,0.168258]
[1755001821862,0.02,118930.0,118890.0,0.0841101]
[1755001822068,0.02,118930.0,118880.0,0.0841219]
[1755001822366,0.02,118930.0,118890.0,1.164]
[1755001823165,0.02,118930.0,118890.0,1.17222456]
[1755001823669,0.00105853,118910.0,118890.0,1.17322456]
[1755001823864,0.01105853,118910.0,118890.0,1.17322456]
[1755001824066,0.01,118910.0,118890.0,1.34143256]
[1755001824369,0.01,118910.0,118890.0,1.50965736]
[1755001824670,0.01,118910.0,118890.0,1.51165736]
[1755001824873,0.01,118910.0,118890.0,1.34343256]
[1755001825271,0.006,118930.0,118890.0,0.003]
[1755001825460,0.126,118930.0,118890.0,0.003]
[1755001825768,0.12,118930.0,118890.0,0.002]
[1755001825967,0.005,118910.0,118890.0,0.002]
[1755001826269,0.015,118910.0,118860.0,0.00823299]
[1755001826469,0.015,118910.0,118890.0,0.004]
[1755001826672,0.02,118910.0,118890.0,0.004]
[1755001826870,0.188208,118910.0,118830.0,0.084152]
[1755001827064,0.20499625,118910.0,118830.0,0.1683086]
[1755001827366,0.02,118910.0,118840.0,0.0841501]
[1755001827570,0.02,118910.0,118830.0,0.084152]
[1755001827764,0.02,118910.0,118820.0,1.17203432]
[1755001827965,0.20499625,118910.0,118820.0,9.389e-05]
[1755001828168,0.28910145,118910.0,118780.0,0.1683819]
[1755001828572,1.36851625,118910.0,118800.0,0.0841744]
[1755001828772,0.20499625,118910.0,118820.0,0.1683228]
[1755001828972,0.20599625,118910.0,118840.0,0.0841462]
[1755001829268,0.20599625,118910.0,118820.0,0.0841595]
[1755001829475,0.20599625,118910.0,118810.0,0.0841704]
[1755001829664,0.20599625,118910.0,118800.0,0.17667049]
[1755001829867,0.20499625,118910.0,118800.0,0.26184889]
[1755001830268,0.20499625,118910.0,118820.0,0.0841603]
[1755001830472,0.20499625,118910.0,118820.0,0.1683238]
[1755001830877,0.20499625,118910.0,118820.0,0.2544878]
[1755001831078,0.20499625,118910.0,118890.0,0.008]
[1755001831270,0.01970702,118910.0,118820.0,0.1703238]
[1755001831471,0.20470327,118910.0,118820.0,0.2544883]
[1755001831670,0.20470327,118910.0,118840.0,0.0841462]
[1755001831868,0.20470327,118910.0,118860.0,0.0841323]
[1755001832074,0.01890897,118930.0,118860.0,0.0841323]
[1755001832271,0.02890897,118930.0,118840.0,0.0841462]
[1755001832579,0.01890897,118930.0,118860.0,0.01678952]
[1755001832765,0.01890897,118930.0,118860.0,0.10092242]
[1755001832969,0.001,118910.0,118860.0,0.26919372]
[1755001833470,0.001,118910.0,118860.0,0.16830926]
[1755001833671,0.00118958,118890.0,118860.0,0.26944576]
[1755001833866,0.001,118930.0,118860.0,0.26944576]
[1755001834073,0.00125132,118880.0,118870.0,1.16336]
[1755001834378,0.001,118930.0,118870.0,1.16336]
[1755001834582,0.002,118930.0,118880.0,0.0841221]
[1755001834877,0.002,118930.0,118880.0,0.18558799]
[1755001835068,0.002,118930.0,118880.0,0.26971009]
[1755001835469,0.0001,118980.0,118960.0,0.00025251]
[1755001835668,0.1201,118980.0,118960.0,0.00025251]
[1755001835978,0.0001,118980.0,118960.0,0.1683645]
[1755001837280,0.0001,118980.0,118960.0,0.23529119]
[1755001837580,1.16312,119090.0,118960.0,0.31934599]
[1755001837781,0.004,118980.0,118970.0,1.3312347]
[1755001837972,1.5,119080.0,118970.0,1.35552773]
[1755001838168,1.61,119080.0,118970.0,1.35552773]
[1755001838373,1.78058865,119080.0,118970.0,1.18741303]
[1755001838574,1.69660275,119080.0,118970.0,1.35552603]
[1755001838780,1.62895076,119080.0,118970.0,1.35552603]
[1755001839073,0.001,118980.0,118970.0,1.18741303]
[1755001839280,0.02,119010.0,118980.0,0.1681024]
[1755001839473,0.0061,119010.0,118980.0,0.0840511]
[1755001839676,0.0061,119010.0,118980.0,0.3361745]
[1755001840075,0.0061,119010.0,118980.0,0.2521231]
[1755001840274,0.0061,119010.0,118980.0,0.3361749]
[1755001840673,0.0061,119010.0,118980.0,0.47021204]
[1755001840868,0.0061,119010.0,118990.0,0.0840447]
[1755001841081,0.0061,119010.0,118990.0,0.18486126]
[1755001841282,0.03,119010.0,118990.0,0.40292526]
[1755001841480,0.03,119010.0,118990.0,0.35292526]
[1755001841676,0.03,119010.0,118990.0,0.23486126]
[1755001841881,0.04,119010.0,118990.0,0.43695887]
[1755001842077,0.04,119010.0,118990.0,0.40292526]
[1755001842279,0.04,119010.0,118990.0,0.23483586]
[1755001842478,0.03148055,119010.0,118990.0,0.01677186]
[1755001842683,0.02,119040.0,118990.0,0.48696406]
[1755001842879,0.1,119040.0,118990.0,0.26891837]
[1755001843080,0.1,119040.0,118990.0,0.10083387]
[1755001843285,0.1,119040.0,118990.0,0.26892916]
[1755001843486,0.1,119040.0,118990.0,0.26890468]
[1755001843885,0.1,119040.0,118990.0,0.18488166]
[1755001844284,0.1,119040.0,118990.0,0.35494938]
[1755001844480,0.1,119040.0,119010.0,0.1680563]
[1755001844684,0.14,119070.0,119010.0,0.39636323]
[1755001844884,0.01,119070.0,119010.0,0.39636323]
[1755001845082,0.01,119070.0,119030.0,0.0840125]
[1755001845282,0.01,119070.0,119030.0,0.18501161]
[1755001845489,0.01,119070.0,119030.0,0.26902811]
[1755001845985,0.14,119100.0,119050.0,0.0839976]
[1755001846191,0.13,119100.0,119090.0,0.39599659]
[1755001846582,0.13,119100.0,119090.0,0.01681967]
[1755001846878,0.13,119100.0,119090.0,0.41281626]
[1755001847088,0.13,119100.0,119090.0,0.01681967]
[1755001847783,0.13,119100.0,119040.0,1.16208]
[1755001848386,0.13,119100.0,119070.0,0.39599659]
[1755001848587,0.13,119100.0,119080.0,0.39599659]
[1755001849093,0.13,119100.0,119070.0,0.41313708]
[1755001849282,0.13,119100.0,119070.0,0.01714049]
[1755001849883,0.13,119100.0,119080.0,0.39599659]
[1755001850187,0.01028,119130.0,119070.0,0.10111059]
[1755001850592,0.01028,119130.0,119120.0,0.39599659]
[1755001850793,0.01899575,119190.0,119090.0,0.18514202]
[1755001850988,0.01899575,119190.0,119090.0,0.18514842]
[1755001851296,1.5,119180.0,119110.0,0.01731766]
[1755001851599,1.5,119180.0,119110.0,0.01731643]
[1755001851887,1.5,119180.0,119140.0,0.39599659]
[1755001852194,1.5,119180.0,119120.0,0.39599659]
[1755001852693,1.58366159,119180.0,119110.0,0.01731643]
[1755001853086,0.0839283,119160.0,119110.0,0.01731643]
[1755001853294,1.21148,119160.0,119060.0,0.0839927]
[1755001853501,1.16148,119160.0,119060.0,0.01905345]
[1755001853984,1.49974749,119180.0,119090.0,0.39599659]
[1755001854188,1.16132,119170.0,119090.0,0.01861231]
[1755001854390,0.0839316,119150.0,119090.0,0.01861231]
[1755001854588,0.1678634,119150.0,119060.0,0.01905345]
[1755001855296,0.1678634,119150.0,119070.0,0.39599659]
[1755001855595,0.1678634,119150.0,119060.0,0.01905345]
[1755001856391,0.01442,119080.0,119060.0,0.01905345]
[1755001856692,0.01442,119100.0,119070.0,0.44801659]
[1755001856894,0.06872,119090.0,119080.0,0.39599659]
[1755001857394,0.06872,119090.0,119060.0,0.01905345]
[1755001857598,0.06872,119080.0,119070.0,0.39599659]
[1755001857799,0.0326,119080.0,119070.0,0.43119659]
[1755001858392,0.0643,119080.0,119070.0,0.41692659]
[1755001858592,0.0543,119080.0,119070.0,0.41692659]